Cogmind - Beta 16 @@@ ROGUE MODE // 2025.11.01 @ 14:12:18 Player: Lazz Result: Self-destructed Performance ------------- Evolutions (2) 1000 Regions Visited (4) 800 Robots Destroyed (9) 45 Value Destroyed (322) 322 Prototype IDs (0) 0 Alien Tech Used (0) 0 Bonus (0) 0 TOTAL SCORE: 2167 Bonus ------- None Cogmind --------- Core Integrity 392/550 Matter 170/300 Energy 100/100 System Corruption 3% Temperature Warm (188) Movement Treading (160) Location -8/Materials Parts ------- > --- POWER (1) -------- (None) > --- PROPULSION (4) --- Light Treads Light Treads Spiked Treads > --- UTILITY (2) ------ Small Storage Unit > --- WEAPON (4) ------- Small Laser Subdweller Laser > --- INVENTORY (8) ---- Improved Ion Engine Subdweller Power Source Subdweller Monowheel Humpback Peak State ------------ > --- POWER ------------ Light Deuterium Engine > --- PROPULSION ------- Light Treads Light Treads Spiked Treads Subdweller Monowheel > --- UTILITY ---------- Small Storage Unit Subdweller Optics > --- WEAPON ----------- Small Laser Subdweller Laser Mini Grenade Launcher Mini Grenade Launcher > --- INVENTORY -------- Improved Ion Engine Subdweller Power Source Humpback Light Assault Rifle Light Cannon [Rating: 19] Favorites ----------- Power Ion Engine Engine Ion Engine Propulsion Aluminum Leg Treads Light Treads Leg Aluminum Leg Wheel Subdweller Monowheel Hover Unit Airjet Utility Small Storage Unit Device Subdweller Optics Storage Small Storage Unit Weapon Light Assault Rifle Energy Gun Small Laser Ballistic Gun Light Assault Rifle Ballistic Cannon Light Cannon Launcher Rocket Launcher Build | -11 -10 -10 -10 -8 ------- Run | Yrd Mat Min Sub Mat Slots Evolved 4 | . . . . 4 Power . | . . . . . Propulsion 2 | . . . . 2 Utility . | . . . . . Weapon 2 | . . . . 2 Parts Attached 19 | 6 . 1 4 8 Power 2 | 1 . . . 1 Engine 2 | 1 . . . 1 Core . | . . . . . Reactor . | . . . . . Propulsion 8 | 2 . . 2 4 Treads 4 | . . . 2 2 Leg 2 | 2 . . . . Wheel 1 | . . . . 1 Hover 1 | . . . . 1 Flight . | . . . . . Utility 2 | 1 . . 1 . Device 1 | . . . 1 . Storage 1 | 1 . . . . Processor . | . . . . . Hackware . | . . . . . Protection . | . . . . . Artifact . | . . . . . Weapon 7 | 2 . 1 1 3 Energy Gun 2 | 1 . . . 1 Energy Cannon . | . . . . . Ballistic Gun 1 | 1 . . . . Ballistic Cannon 1 | . . . 1 . Launcher 3 | . . 1 . 2 Special Weapon . | . . . . . Impact Weapon . | . . . . . Slashing Weapon . | . . . . . Piercing Weapon . | . . . . . Special Melee Weapon . | . . . . . Unidentified Prototypes . | . . . . . Parts Lost 7 | . . . 2 5 Power . | . . . . . Propulsion 2 | . . . 1 1 Utility . | . . . . . Weapon 5 | . . . 1 4 Highest Loss Streak 2 | . . . 2 2 To Critical Strikes . | . . . . . Average Backups 5 | 1 4 5 6 5 Power 1 | . 1 1 1 2 Propulsion 1 | . 2 2 2 . Utility . | . . . . 1 Weapon 2 | . 1 2 2 1 Tool/Special . | . . . . . Unused Backups 5 | . . . 1 4 Power 3 | . . . . 3 Propulsion . | . . . . . Utility 1 | . . . . 1 Weapon 1 | . . . 1 . Tool/Special . | . . . . . Average Slot Usage (%) 87 | . 85 84 82 93 Engine 12 | . 14 14 14 9 Treads 12 | . . . 8 29 Leg 15 | . 28 28 16 . Wheel 2 | . . . . 5 Device 3 | . . . 2 7 Storage 12 | . 14 14 14 9 Energy Gun 8 | . 14 3 . 17 Ballistic Gun 10 | . 14 14 14 4 Ballistic Cannon 3 | . . . 7 6 Launcher 6 | . . 10 5 3 Peak Build Rating 19 | 6 6 7 9 19 Average Rating 9 | 4 6 6 6 15 On Entrance 5 | . 6 6 7 9 Avg Prop Armor Cover (%) 2 | . . . . 2 Naked Turns . | . . . . . Heaviest Build 21 | 12 12 15 16 21 Greatest Support 80 | 20 20 20 40 80 Greatest Overweight (x) 1 | 1 . . 1 . Average Overweight (x) . | . . . . . Largest Inventory Capacity 8 | 8 8 8 8 8 Average Capacity 7 | 7 8 8 8 8 Most Carried 8 | 4 5 6 8 8 Average Carried 5 | 1 4 5 6 6 Final Capacity 8 | 8 8 8 8 8 Final Carried 8 | 4 5 6 8 5 Class Distribution -------------------- 61% | Mutant 20% | Skirmisher 15% | Scavenger-Skirmisher 3% | Gunner Dominant Class ---------------- Mutant | -10/Materials Mutant | -10/Mines Mutant | -10/Subcaves Skirmisher | -8/Materials Resources | -11 -10 -10 -10 -8 ----------- Run | Yrd Mat Min Sub Mat Matter Collected 490 | 187 . 148 36 119 Remotely . | . . . . . Salvage Created 324 | . . 29 34 261 Parts 24 | . . . 6 18 Haulers Intercepted . | . . . . . Recyclers Shooed 1 | . . . . 1 Parts Field Recycled . | . . . . . Retrieved Matter . | . . . . . Parts Self-Destructed . | . . . . . Prevented . | . . . . . Parts Restored . | . . . . . Kills | -11 -10 -10 -10 -8 ------- Run | Yrd Mat Min Sub Mat Combat Hostiles Destroyed 16 | . . 9 1 6 Guns 6 | . . 1 1 4 AOE 10 | . . 8 . 2 Classes Destroyed 8 | . . 1 1 6 Recycler 1 | . . . . 1 Watcher 1 | . . . . 1 Swarmer 1 | . . . . 1 Grunt 3 | . . . . 3 Sentry 1 | . . . . 1 Hunter 1 | . . . . 1 Subdweller 1 | . . . 1 . Assembled 9 | . . 9 . . Best Kill Streak 9 | . . 9 1 3 Combat Bots Only 9 | . . 9 1 3 Max Kills in Single Turn 5 | . . 5 1 2 Gunslinging . | . . . . . Exploded 5 | . . 5 . 1 Melee . | . . . . . Uniques/NPCs Destroyed . | . . . . . Combat | -11 -10 -10 -10 -8 -------- Run | Yrd Mat Min Sub Mat Hostile Shots Fired 104 | . . 22 4 78 Missed 33 | . . 14 . 19 Hits 71 | . . 8 4 59 Melee 3 | . . 3 . . Projectile 68 | . . 5 4 59 Damage Taken 1438 | . . 285 87 1066 Core 236 | . . 55 23 158 Absorbed by Shields . | . . . . . Core Remaining (%) 84 | 100 . . 68 . Volleys Fired 35 | . . 6 3 26 Largest 4 | . . 2 2 4 Hottest 160 | . . 53 50 160 Shots Fired 90 | . . 12 5 73 Gun 58 | . . 6 3 49 Cannon 20 | . . . 2 18 Launcher 12 | . . 6 . 6 Special . | . . . . . Kinetic 37 | . . 6 5 26 Thermal 41 | . . . . 41 Explosive 12 | . . 6 . 6 Electromagnetic . | . . . . . Robot Hit Streak 6 | . . 5 6 6 Robot Miss Streak 6 | . . 2 1 6 Penetration Max . | . . . . . Secondary Targets . | . . . . . Shots Hit Robots 45 | . . 7 3 35 Core Hits 39 | . . 17 2 20 Critical Kills 1 | . . . . 1 Critical Parts Destroyed . | . . . . . Critical Strikes 1 | . . . . 1 Destroy 1 | . . . . 1 Melee Attacks . | . . . . . Impact . | . . . . . Slashing . | . . . . . Piercing . | . . . . . Sneak Attacks . | . . . . . Combat Hostiles . | . . . . . Follow-up Attacks . | . . . . . Damage Inflicted 1423 | . . 509 34 880 Guns 473 | . . 34 14 425 Cannons 146 | . . . 20 126 Explosions 797 | . . 468 . 329 Melee . | . . . . . Ramming 7 | . . 7 . . Kinetic 224 | . . 34 34 156 Thermal 395 | . . . . 395 Explosive 797 | . . 468 . 329 Electromagnetic . | . . . . . Impact . | . . . . . Slashing . | . . . . . Piercing . | . . . . . Highest Corruption 3 | . . . . 3 Average Corruption 3 | . . . . 3 Corruption Purged . | . . . . . Corruption Blocked . | . . . . . Effects 2 | . . . . 2 Parts Rejected 1 | . . . . 1 Weapon Failures 1 | . . . . 1 Overload Shots . | . . . . . Overflow Damage 11 | . . 10 . 1 Projectiles . | . . . . . Explosions 11 | . . 10 . 1 Melee . | . . . . . Knockbacks . | . . . . . Impact . | . . . . . Kinetic . | . . . . . Secondary . | . . . . . Self-Inflicted Damage 138 | . . 138 . . Shots 5 | . . 5 . . Rammed . | . . . . . Targets Rammed 2 | . . 2 . . Kicked 2 | . . 2 . . Crushed . | . . . . . Highest Temperature 414 | . . 24 . 414 Average Temperature 131 | . . 11 . 144 Received Heat Transfer 159 | . . . 24 135 Effects 2 | . . . . 2 Short Circuit 1 | . . . . 1 Damage (minor) 1 | . . . . 1 Siege Activations . | . . . . . Martial Activations . | . . . . . Shielding Activations . | . . . . . Robots Disrupted . | . . . . . Combat Hostiles . | . . . . . Robots Corrupted . | . . . . . Combat Hostiles . | . . . . . Parts Fried . | . . . . . Impact Corruptions . | . . . . . Robots Melted . | . . . . . Combat Hostiles . | . . . . . Parts Melted . | . . . . . Heat Transferred 575 | . . . . 575 Parts Sabotaged . | . . . . . Parts Stolen . | . . . . . Parts Stripped . | . . . . . Power Chain Reactions . | . . . . . Alert | -11 -10 -10 -10 -8 ------- Run | Yrd Mat Min Sub Mat Maximum Alert Level . | . . . . . Low Security (%) 100 | 100 100 100 . 100 Level 1 . | . . . . . Level 2 . | . . . . . Level 3 . | . . . . . Level 4 . | . . . . . Level 5 . | . . . . . High Security . | . . . . . Max Security . | . . . . . Peak Influence 100 | . . 26 . 100 Initial . | . . . . . Average 17 | . . 2 . 37 Influence Increases 237 | . . 36 . 201 Destroy 0b10 Robot/C 120 | . . . . 120 Destroy 0b10 Robot/NC 10 | . . . . 10 Destroy Leader 32 | . . . . 32 Successful Hack 14 | . . . . 14 Destroy Structure 61 | . . 36 . 25 Influence Decreases 187 | . . 36 . 151 Time Decay 137 | . . 36 . 101 Lost Part 50 | . . . . 50 Squads Dispatched 1 | . . . . 1 Investigation 1 | . . . . 1 Extermination . | . . . . . Reinforcement . | . . . . . Assault . | . . . . . Garrison . | . . . . . Intercept . | . . . . . Searches Triggered . | . . . . . Construction Impeded . | . . . . . Haulers Reinforced . | . . . . . Active Scanning Responses . | . . . . . Cargo Convoy Interrupts . | . . . . . Stealth | -11 -10 -10 -10 -8 --------- Run | Yrd Mat Min Sub Mat Distress Signals . | . . . . . Communications Jammed . | . . . . . Distress Signals . | . . . . . Times Spotted 26 | . 1 9 1 15 Peak Tracking Total 9 | . . 9 1 8 Tactical Retreats . | . . . . . Traps | -11 -10 -10 -10 -8 ------- Run | Yrd Mat Min Sub Mat Traps Triggered . | . . . . . Indirectly . | . . . . . Trap Hack Attempts . | . . . . . Triggered . | . . . . . Disarmed . | . . . . . Reprogrammed . | . . . . . Reused . | . . . . . Traps Extracted . | . . . . . Installed . | . . . . . Triggered . | . . . . . Machines | -11 -10 -10 -10 -8 ---------- Run | Yrd Mat Min Sub Mat Machines Disabled . | . . . . . Max in Single Turn . | . . . . . Machines Repaired . | . . . . . Machines Dismantled . | . . . . . Machines Sabotaged . | . . . . . Overloaded Fab Kills . | . . . . . Hacking | -11 -10 -10 -10 -8 --------- Run | Yrd Mat Min Sub Mat Machines Accessed 3 | . . . . 3 Terminals 2 | . . . . 2 Fabricators . | . . . . . Repair Stations . | . . . . . Recycling Units . | . . . . . Scanalyzers 1 | . . . . 1 Garrison Access . | . . . . . Total Hacks 7 | . . . . 7 Successful 6 | . . . . 6 Failed 1 | . . . . 1 Catastrophic 1 | . . . . 1 Database Lockouts . | . . . . . Manual . | . . . . . Terminals 4 | . . . . 4 Fabricators . | . . . . . Repair Stations . | . . . . . Recycling Units . | . . . . . Scanalyzers 3 | . . . . 3 Garrison Access . | . . . . . Terminal Hacks 3 | . . . . 3 Branch Access Points 1 | . . . . 1 Security Status 1 | . . . . 1 Zone Layout 1 | . . . . 1 Fabricator Hacks . | . . . . . Repair Station Hacks . | . . . . . Recycling Unit Hacks . | . . . . . Scanalyzer 3 | . . . . 3 Retrieve Study 3 | . . . . 3 Garrison Access Hacks . | . . . . . Unauthorized Hacks . | . . . . . Terminals . | . . . . . Fabricators . | . . . . . Repair Stations . | . . . . . Recycling Units . | . . . . . Scanalyzers . | . . . . . Garrison Access . | . . . . . Data Cores Recovered . | . . . . . Used . | . . . . . Hacking Detections 2 | . . . . 2 Full Trace Events 2 | . . . . 2 Feedback Events . | . . . . . Feedback Blocked . | . . . . . Robot Schematics Acquired . | . . . . . Robots Built . | . . . . . Authchips . | . . . . . Time . | . . . . . Total Robot Build Rating . | . . . . . Part Schematics Acquired . | . . . . . Parts Built . | . . . . . Authchips . | . . . . . Time . | . . . . . Total Part Build Rating . | . . . . . Part Studies Acquired 3 | . . . . 3 Parts Repaired . | . . . . . Time . | . . . . . Parts Recycled . | . . . . . Recycled Matter . | . . . . . Retrieved Matter . | . . . . . Retrieved Components . | . . . . . Parts Scanalyzed . | . . . . . Part Schematics Acquired . | . . . . . Parts Damaged . | . . . . . Bothacking | -11 -10 -10 -10 -8 ------------ Run | Yrd Mat Min Sub Mat Used RIF Installer . | . . . . . Robots Hacked . | . . . . . Non-combat . | . . . . . Combat . | . . . . . Robot Hacks Applied . | . . . . . Relay Couplers Released . | . . . . . Fabnet Peak Effective % . | . . . . . Robots Rewired . | . . . . . Allies Hacked . | . . . . . Hacks Repelled . | . . . . . Allies | -11 -10 -10 -10 -8 -------- Run | Yrd Mat Min Sub Mat Total Allies . | . . . . . Largest Group . | . . . . . Highest-Rated Group . | . . . . . Highest-Rated Ally . | . . . . . Total Orders . | . . . . . Ally Attacks . | . . . . . Total Damage . | . . . . . Kills . | . . . . . Allies Corrupted . | . . . . . Allies Melted . | . . . . . Intel | -11 -10 -10 -10 -8 ------- Run | Yrd Mat Min Sub Mat Active Infowar (turns) 258 | . . . 20 238 Optics 258 | . . . 20 238 Robot Analysis Total . | . . . . . Derelict Logs Recovered 1 | . . 1 . . Drone Launches . | . . . . . Drone Recoveries . | . . . . . Exploration | -11 -10 -10 -10 -8 ------------- Run | Yrd Mat Min Sub Mat Turns Passed 787 | 53 17 310 109 298 Spaces Moved 414 | 35 14 207 39 119 Core 3 | 3 . . . . Treads 134 | . . . 15 119 Legs 277 | 32 14 207 24 . Wheels . | . . . . . Hover . | . . . . . Flight . | . . . . . Fastest Speed 50 | 50 120 120 120 160 Average Speed 134 | 116 120 120 149 160 Slowest Speed 190 | 120 120 120 190 160 Overloaded Moves . | . . . . . Propulsion Burnouts . | . . . . . Robots Hopped . | . . . . . Potential Cave-ins . | . . . . . Cave-ins Triggered 1 | . . . . 1 Exploration Rate (%) 17 | 4 8 49 3 22 Regions Visited 4 Branch Regions 2 Pre-discovered Areas . | . . . . . Known Exits Taken . | . . . . . Unknown Exits Taken 4 | 1 1 1 1 . Scrap Searched 1 | . . 1 . . Spaces Dug . | . . . . . Terrain Destroyed 105 | . . 68 . 37 Melee . | . . . . . Projectile . | . . . . . AOE 105 | . . 68 . 37 Terrain Rammed . | . . . . . Walls Destroyed . | . . . . . Machines Disabled . | . . . . . Actions | -11 -10 -10 -10 -8 --------- Run | Yrd Mat Min Sub Mat Total 575 | 44 14 258 89 170 Wait 75 | . . 40 31 4 Move 410 | 34 13 206 38 119 Hop . | . . . . . Pick Up 20 | 4 1 2 8 5 Fast Attach 7 | 6 . . 1 . Attach 12 | . . 1 3 8 Detach . | . . . . . Swap 4 | . . . . 4 Drop 10 | . . 1 5 4 Fire 35 | . . 6 3 26 Melee . | . . . . . Ram . | . . . . . Kick 2 | . . 2 . . Crush . | . . . . . Escape Stasis . | . . . . . Rewire . | . . . . . Trap . | . . . . . Miscellaneous . | . . . . . Route ------- -11/Scrapyard -10/Materials -10/Mines (discovered 2 exits: [*Mat] / [*Sub]) -10/Subcaves -8/Materials History --------- Turn | Location | Event 2 | -11/Scrapyard | Met Revision 17 32 | -11/Scrapyard | Discovered new exit (range 15) 54 | -11/Scrapyard | Entered Materials 67 | -10/Materials | Discovered new exit (range 3) 71 | -10/Materials | Entered Mines 90 | -10/Mines | Met a Derelict bent on vengeance 99 | -10/Mines | Assembled infested the area 136 | -10/Mines | Received a Rocket Launcher from a helpful Derelict 170 | -10/Mines | Learned Materials security intel 185 | -10/Mines | Destroyed 9 combat bots 315 | -10/Mines | Discovered new exit (range 13) 316 | -10/Mines | Build established: Mutant 368 | -10/Mines | Discovered new exit (range 9) 381 | -10/Mines | Entered Subcaves 381 | -10/Subcaves | Discovered new exit (range 11) 382 | -10/Subcaves | Approached by a straggling Scientist 490 | -10/Subcaves | Entered Materials 490 | -8/Materials | Evolved 4 slots: Propulsion x2, Weapon x2 685 | -8/Materials | Crushed by falling debris 788 | -8/Materials | Self-destructed Last Messages --------------- H-55 Commando destroyed. K-01 Serf collects debris. R-06 Scavenger collects Wheel. Acquired 27 matter. K-01 Serf collects debris. R-06 Scavenger collects Lgt. Nuclear Core. K-01 Serf collects debris. R-06 Scavenger collects Carbon-fiber Leg. S-10 Pest destroyed. K-01 Serf collects debris. K-01 Serf destroyed. R-06 Scavenger collects Wheel. Lgt. Cannon destroyed. R-06 Scavenger collects Sml. Matter Pod. R-06 Scavenger collects Lgt. Ion Engine. Lgt. Treads+ destroyed. R-06 Scavenger collects Wheel. K-01 Serf collects debris. System corrupted: Lgt. Deuterium Engine rejected. Map ----- +----------------------------------------------------+ | ??????????????????????????????????#"""#????????# | | ???????????????????????????????Y"##"T"#######??# | | ??????????????????????????????? ! #??# | | ??????????????????????????????? ! #??# | | ??????????????????????????????? #??# | | ????????????????????????????????? #??### | | ??????????????????????????????????? ###### | | ??????????????????????????????????? """ = | | ????????????????????????? ?*** """ | | ????????????????????????# ** """ | | ????????????????????????# # | | ????????????????????????# ! # | | ????????????????????????# #??############### T | | ????????????????????????+ u #????????????????# # | | ????????????????????????# ru#????????#######?# # | | ????????????????????????# ######??? #?# # | | ????????????????????????#w ## #???""""" #?# # | | ????????????????????????# ## #???""""" #?# # | | ????????????????????????# ## #???""""" #?# # | | ????????????????????????# r ## #???""""" #?# # | | ????????????????????????# ## #???""""" #?# # | | ????????????????????????# s ## #??? # # # | | ????????????????????????# ss## #??? # # # | | ??????????# #####/###k%r###+######+####### # | | ??????????# g l % %% a # | | ??????????# g @ # | | ?????????? a # | | ?????????????##### #### ##########+#### ## | | ?????????????????# ????# ## # | | ?????????????????#??????# ## # " | | ????????????????????????# ## + | | ????????????????????????# ## !/= = # #### | | ????????????????????????# ## / * % # #???# | | ????????????????????????# ###############/####? | | ????????????????????????# #??????#!#% ! #? | | ????????????????????????# # #[ #? | | ????????????????????????# # #?? | | ????????????????????????# # ## #?? | | ????????????????????????# r# ## [[! + | | ????????????????????????? + ## [! # | | ????????????????????????? # ## [! #? | | ????????????????????????????# ## #?? | | ????????????????????????????# ##! #?? | | ??????????????????????????H?# ###########?? | | ????????????????????????????#########????????????? | | ?????????????????????????????????????????????????? | | ?????????????????????????????????????????????????? | | ?????????????????????????????????????????????????? | | ?????????????????????????????????????????????????? | | ?????????????????????????????????????????????????? | +----------------------------------------------------+ Best States ------------- Heat Dissipation 31 Energy Generation 14 Energy Capacity 250 Matter Stores 300 Matter Capacity 300 Sight Range 21 Terrain Scan Density 10 Evasion (%) 55 Recoil Reduction 4 Item Schematics ----------------- None Robot Schematics ------------------ None Fabricated ------------ Nothing Repaired ---------- Nothing Studied --------- Mni. Grenade Launcher | -8/Materials | Hacked Lgt. Treads | -8/Materials | Hacked Ion Engine | -8/Materials | Hacked Alien Tech Used ----------------- None Achievements -------------- None Challenges ------------ None Game ------ Seed EtherialMultinovaCapacitor Manual? 0 Play Time 00:10:55 Cumulative 34.5 hours Start 2025.11.01 @ 13:36:03 End 2025.11.01 @ 14:12:18 Sessions 3 Manual Loads 0 Difficulty Rogue Special Mode None Game No. 48 Rogue 48 Adventurer 0 Explorer 0 Win Type - Total 0 Types 0/0/0/0/0/0/0/0/0/0 Lore% 29 Gallery% 31 Achievement% 24 Wizard Run 0 Options --------- Layout 2 ASCII 0 Keyboard 0 Movement Mouse Keybinds 0 Fullscreen 1 Font 24/Smallcaps Map View 50x44 Zoom Use 0% Tactical HUD 0 Map Filters NONE Filters NONE Steam 1 RUN: 143e1a14-3451-4b62-9147-1461d7dfd46b